[Event "51st La Roda Open 2025"]
[Site "La Roda"]
[Date "2025.04.17"]
[Round "5.17"]
[White "Vinals Rioja, Jaume"]
[Black "Portero Rubio, Martin"]
[Result "1/2-1/2"]
[Annotator "NA RC"]
[ECO "A48"]
[WhiteElo "1928"]
[BlackElo "2125"]
[PlyCount "260"]
[EventDate "2025.04.15"]
[EventType "swiss"]
[EventCountry "ESP"]
[SourceTitle "playchess.com"]
[Source "ChessBase"]
[SourceQuality "1"]
[TimeControl "5400+30"]

1. d4 {[%emt 0:00:11]} Nf6 {[%emt 0:00:10]} 2. Nf3 {[%emt 0:00:11]} c5 {[%emt 0:00:25]} 3. e3 {[%emt 0:00:12]} g6 {[%emt 0:01:22]} 4. Be2 {[%emt 0:00:52]} Bg7 {[%emt 0:00:23]} 5. O-O {[%emt 0:00:38]} O-O {[%emt 0:00:17]} 6. Nbd2 {[%emt 0:00:59]} b6 {[%emt 0:02:36]} 7. b3 {[%emt 0:01:52]} Bb7 {[%emt 0:01:36]} 8. Bb2 {[%emt 0:00:32]} d6 {[%emt 0:04:51]} 9. c4 {[%emt 0:03:04]} Nbd7 {[%emt 0:05:34]} 10. Qc2 {[%emt 0:00:53]} Rc8 {[%emt 0:03:23]} 11. Rac1 {[%emt 0:02:03]} cxd4 {[%emt 0:07:11]} 12. exd4 {[%emt 0:02:48]} d5 {[%emt 0:01:28]} 13. Qb1 {[%emt 0:01:48]} Re8 {[%emt 0:06:21]} 14. Rfd1 {[%emt 0:00:50]} Rc7 {[%emt 0:02:11]} 15. Bf1 {[%emt 0:02:08]} Qa8 {[%emt 0:01:25]} 16. Ne5 {[%emt 0:02:12]} Nxe5 {[%emt 0:13:11]} 17. dxe5 {[%emt 0:00:12]} Nd7 {[%emt 0:00:48]} 18. Re1 {[%emt 0:02:56]} Nf8 {[%emt 0:06:52]} 19. cxd5 {[%emt 0:03:39]} Rxc1 {[%emt 0:00:30]} 20. Rxc1 {[%emt 0:00:16]} Bxd5 {[%emt 0:00:36]} 21. Nc4 {[%emt 0:05:53]} Be4 {[%emt 0:03:46]} 22. Qa1 {[%emt 0:00:38]} Ne6 {[%emt 0:00:42]} 23. Re1 {[%emt 0:01:31]} Nf4 {[%emt 0:04:36]} 24. f3 {[%emt 0:03:36]} Bc6 {[%emt 0:02:05]} 25. Qc1 {[%emt 0:02:42]} Ne6 {[%emt 0:01:13]} 26. Qe3 {[%emt 0:01:22]} Rd8 {[%emt 0:02:59]} 27. Bd3 {[%emt 0:02:23]} Nc5 {[%emt 0:02:19]} 28. Bc2 {[%emt 0:00:31]} Rd7 {[%emt 0:01:39]} 29. Rd1 {[%emt 0:01:52]} Rxd1+ {[%emt 0:02:12]} 30. Bxd1 {[%emt 0:00:02]} Ne6 {[%emt 0:02:17]} 31. Bc2 {[%emt 0:00:37]} Qd8 {[%emt 0:02:10]} 32. Kf2 {[%emt 0:02:45]} Qc7 {[%emt 0:02:28]} 33. Bb1 {[%emt 0:03:01]} h5 {[%emt 0:02:14]} 34. g3 {[%emt 0:05:30]} Bb7 {[%emt 0:03:09]} 35. Nd2 {[%emt 0:02:38]} Kh7 {[%emt 0:02:32]} 36. f4 {[%emt 0:01:49]} Bh6 {[%emt 0:00:41]} 37. h4 {[%emt 0:02:50]} Nc5 {[%emt 0:00:45]} 38. Ba3 {[%emt 0:01:40]} Qc6 {[%emt 0:01:00]} 39. Bxc5 {[%emt 0:03:31]} Qg2+ {[%emt 0:00:35]} 40. Ke1 {[%emt 0:00:09]} bxc5 {[%emt 0:01:11]} 41. Be4 {[%emt 0:01:29]} Bxe4 {[%emt 0:01:26]} 42. Nxe4 {[%emt 0:00:12]} Qxa2 {[%emt 0:01:02]} 43. Nxc5 {[%emt 0:00:16]} a5 {[%emt 0:01:43]} 44. Ne4 {[%emt 0:00:30]} Qc2 {[%emt 0:00:38]} 45. Kf1 {[%emt 0:01:21]} Kg8 {[%emt 0:01:18]} 46. Nd2 {[%emt 0:36:26]} Bf8 {[%emt 0:00:33]} 47. Ke2 {[%emt 0:00:00]} Qc6 {[%emt 0:00:59]} 48. Nc4 {[%emt 0:00:00]} a4 {[%emt 0:00:35]} 49. Qd3 {[%emt 0:00:00]} Qg2+ {[%emt 0:00:35]} 50. Kd1 {[%emt 0:00:00]} axb3 {[%emt 0:01:07]} 51. Qxb3 {[%emt 0:00:00]} e6 {[%emt 0:00:54]} 52. Qd3 {[%emt 0:00:00]} Bb4 {[%emt 0:01:14]} 53. Nd6 {[%emt 0:00:00]} Qg1+ {[%emt 0:01:21]} 54. Kc2 {[%emt 0:00:00]} Qg2+ {[%emt 0:01:03]} 55. Kb3 {[%emt 0:00:00]} Bc5 {[%emt 0:00:55]} 56. Ne4 {[%emt 0:00:00]} Be7 {[%emt 0:00:19]} 57. Kc4 {[%emt 0:00:00]} Qa2+ {[%emt 0:00:09]} 58. Kc3 {[%emt 0:00:00]} Qa1+ {[%emt 0:00:26]} 59. Kc2 {[%emt 0:00:00]} Qa2+ {[%emt 0:00:32]} 60. Kd1 {[%emt 0:00:00]} Kg7 {[%emt 0:00:35]} 61. Qc2 {[%emt 0:00:00]} Qa1+ {[%emt 0:00:21]} 62. Ke2 {[%emt 0:00:00]} Qg1 {[%emt 0:00:28]} 63. Kf3 {[%emt 0:00:00]} Qh1+ {[%emt 0:00:48]} 64. Qg2 {[%emt 0:00:00]} Qc1 {[%emt 0:00:38]} 65. Qd2 {[%emt 0:00:00]} Qf1+ {[%emt 0:00:24]} 66. Qf2 {[%emt 0:00:00]} Qc4 {[%emt 0:00:25]} 67. Qe2 {[%emt 0:00:00]} Qd5 {[%emt 0:00:24]} 68. Qd2 {[%emt 0:00:00]} Qb3+ {[%emt 0:00:34]} 69. Qe3 {[%emt 0:00:00]} Qb1 {[%emt 0:00:23]} 70. Qe2 {[%emt 0:00:00]} Bd8 {[%emt 0:00:57]} 71. Qd2 {[%emt 0:00:00]} Bb6 {[%emt 0:00:24]} 72. Qe2 {[%emt 0:00:00]} Qg1 {[%emt 0:00:33]} 73. Nf2 {[%emt 0:00:00]} Qc1 {[%emt 0:00:50]} 74. Ne4 {[%emt 0:00:00]} Qh1+ {[%emt 0:00:16]} 75. Qg2 {[%emt 0:00:00]} Qd1+ {[%emt 0:00:22]} 76. Qe2 {[%emt 0:00:00]} Qd4 {[%emt 0:00:20]} 77. Qe1 {[%emt 0:00:00]} Qd3+ {[%emt 0:00:26]} 78. Kg2 {[%emt 0:00:00]} Qd5 {[%emt 0:00:47]} 79. Kf3 {[%emt 0:00:00]} Qd3+ {[%emt 0:00:25]} 80. Kg2 {[%emt 0:00:00]} Be3 {[%emt 0:00:45]} 81. Nf2 {[%emt 0:00:00]} Qd5+ {[%emt 0:00:11]} 82. Kh2 {[%emt 0:00:00]} Qf3 {[%emt 0:00:37]} 83. Nh3 {[%emt 0:00:00]} Bc5 {[%emt 0:00:37]} 84. Ng5 {[%emt 0:00:00]} Qd3 {[%emt 0:00:33]} 85. Ne4 {[%emt 0:00:00]} Bb6 {[%emt 0:00:26]} 86. Kg2 {[%emt 0:00:00]} Be3 {[%emt 0:00:31]} 87. Nf2 {[%emt 0:00:00]} Qd5+ {[%emt 0:00:23]} 88. Kh2 {[%emt 0:00:00]} Bb6 {[%emt 0:00:31]} 89. Ne4 {[%emt 0:00:00]} Qd4 {[%emt 0:00:40]} 90. Kg2 {[%emt 0:00:00]} Qb2+ {[%emt 0:00:07]} 91. Kf3 {[%emt 0:00:00]} Qc2 {[%emt 0:00:40]} 92. Qe2 {[%emt 0:00:00]} Qb1 {[%emt 0:00:18]} 93. Nf2 {[%emt 0:00:00]} Qg1 {[%emt 0:00:43]} 94. Ne4 {[%emt 0:00:55]} Qh1+ {[%emt 0:00:33]} 95. Qg2 {[%emt 0:23:35]} Qe1 {[%emt 0:00:34]} 96. Qe2 {[%emt 0:00:00]} Qg1 {[%emt 0:00:40]} 97. Nf2 {[%emt 0:00:00]} Qa1 {[%emt 0:00:26]} 98. Ne4 {[%emt 0:00:00]} Qb1 {[%emt 0:00:22]} 99. Nf2 {[%emt 0:00:00]} Qb4 {[%emt 0:00:37]} 100. Ne4 {[%emt 0:00:00]} Qd4 {[%emt 0:00:09]} 101. Nf2 {[%emt 0:00:00]} Qd5+ {[%emt 0:00:22]} 102. Ne4 {[%emt 0:00:00]} Ba7 {[%emt 0:00:20]} 103. Kg2 {[%emt 0:00:00]} Qb3 {[%emt 0:00:25]} 104. Nf2 {[%emt 0:00:00]} Bc5 {[%emt 0:00:17]} 105. Ne4 {[%emt 0:00:00]} Be7 {[%emt 0:00:13]} 106. Nf2 {[%emt 0:00:00]} Qb4 {[%emt 0:00:29]} 107. Ne4 {[%emt 0:00:00]} Qd4 {[%emt 0:00:11]} 108. Kf3 {[%emt 0:00:00]} Qg1 {[%emt 0:00:22]} 109. Qf2 {[%emt 0:00:00]} Qh1+ {[%emt 0:00:31]} 110. Qg2 {[%emt 0:00:00]} Qd1+ {[%emt 0:00:19]} 111. Qe2 {[%emt 0:00:00]} Qd5 {[%emt 0:00:09]} 112. Kf2 {[%emt 0:00:00]} Bd8 {[%emt 0:00:21]} 113. Kf3 {[%emt 0:00:00]} Bb6 {[%emt 0:01:52]} 114. Kg2 {[%emt 0:00:00]} Qd4 {[%emt 0:00:14]} 115. Nf2 {[%emt 0:00:00]} Qa1 {[%emt 0:00:31]} 116. Kh2 {[%emt 0:00:00]} Qc1 {[%emt 0:00:25]} 117. Kg2 {[%emt 0:00:00]} Bd8 {[%emt 0:00:14]} 118. Ne4 {[%emt 0:00:00]} Bxh4 {[%emt 0:01:57]} 119. gxh4 {[%emt 0:00:00]} Qxf4 {[%emt 0:00:08]} 120. Nd2 {[%emt 0:00:00]} Qxh4 {[%emt 0:00:18]} 121. Nf3 {[%emt 0:00:00]} Qg4+ {[%emt 0:00:13]} 122. Kh2 {[%emt 0:00:00]} Qf4+ {[%emt 0:00:27]} 123. Kh3 {[%emt 0:00:00]} g5 {[%emt 0:00:56]} 124. Kg2 {[%emt 0:00:00]} h4 {[%emt 0:00:37]} 125. Nh2 {[%emt 0:00:00]} Qg3+ {[%emt 0:00:33]} 126. Kh1 {[%emt 0:00:00]} h3 {[%emt 0:00:51]} 127. Ng4 {[%emt 0:00:00]} Qf4 {[%emt 0:00:40]} 128. Kg1 {[%emt 0:00:00]} Kg6 {[%emt 0:00:41]} 129. Qd3+ {[%emt 0:00:00]} Qf5 {[%emt 0:00:25]} 130. Qxh3 {[%emt 0:00:00]} Qb1+ {[%emt 0:00:05]} 1/2-1/2

[Event "51st La Roda Open 2025"]
[Site "La Roda"]
[Date "2025.04.17"]
[Round "5.18"]
[White "Hernandez Leon, Sergio"]
[Black "Fuentes de Nova, Sebastian"]
[Result "1-0"]
[Annotator "NA RC"]
[ECO "D32"]
[WhiteElo "2123"]
[BlackElo "1902"]
[PlyCount "125"]
[EventDate "2025.04.15"]
[EventType "swiss"]
[EventCountry "ESP"]
[SourceTitle "playchess.com"]
[Source "ChessBase"]
[SourceQuality "1"]
[TimeControl "5400+30"]

1. Nf3 {[%emt 0:00:03]} d5 {[%emt 0:00:35]} 2. b3 {[%emt 0:00:06]} Nf6 {[%emt 0:00:27]} 3. Bb2 {[%emt 0:00:04]} e6 {[%emt 0:00:13]} 4. c4 {[%emt 0:00:07]} Be7 {[%emt 0:00:19]} 5. e3 {[%emt 0:00:09]} c5 {[%emt 0:01:04]} 6. cxd5 {[%emt 0:01:09]} exd5 {[%emt 0:00:10]} 7. d4 {[%emt 0:00:17]} Nc6 {[%emt 0:00:11]} 8. Be2 {[%emt 0:00:47]} Be6 {[%emt 0:00:50]} 9. O-O {[%emt 0:00:12]} O-O {[%emt 0:01:29]} 10. Nc3 {[%emt 0:00:49]} Ne4 {[%emt 0:06:19]} 11. Rc1 {[%emt 0:03:14]} cxd4 {[%emt 0:01:16]} 12. Nxd4 {[%emt 0:11:09]} Nxd4 {[%emt 0:00:18]} 13. Qxd4 {[%emt 0:02:34]} Bf6 {[%emt 0:00:44]} 14. Qd3 {[%emt 0:12:55]} Rc8 {[%emt 0:01:43]} 15. Rfd1 {[%emt 0:18:40]} Bxc3 {[%emt 0:29:27]} 16. Bxc3 {[%emt 0:00:35]} Rxc3 {[%emt 0:00:08]} 17. Rxc3 {[%emt 0:06:04]} Qf6 {[%emt 0:00:20]} 18. Rc2 {[%emt 0:02:51]} Qxf2+ {[%emt 0:01:02]} 19. Kh1 {[%emt 0:00:08]} Qh4 {[%emt 0:00:39]} 20. Kg1 {[%emt 0:00:18]} Qf2+ {[%emt 0:02:34]} 21. Kh1 {[%emt 0:00:16]} Qh4 {[%emt 0:00:08]} 22. Qd4 {[%emt 0:13:24]} Bf5 {[%emt 0:08:44]} 23. Bd3 {[%emt 0:04:49]} Rd8 {[%emt 0:09:05]} 24. Kg1 {[%emt 0:02:48]} b6 {[%emt 0:02:14]} 25. Qe5 {[%emt 0:01:28]} Qg5 {[%emt 0:02:17]} 26. Qf4 {[%emt 0:02:44]} Qxf4 {[%emt 0:00:49]} 27. exf4 {[%emt 0:00:02]} h5 {[%emt 0:00:07]} 28. Rc7 {[%emt 0:00:39]} Bg4 {[%emt 0:01:52]} 29. Re1 {[%emt 0:00:35]} Nc5 {[%emt 0:00:29]} 30. Be2 {[%emt 0:03:13]} Bxe2 {[%emt 0:00:40]} 31. Rxe2 {[%emt 0:00:06]} d4 {[%emt 0:00:02]} 32. Ree7 {[%emt 0:07:07]} d3 {[%emt 0:05:24]} 33. Rxf7 {[%emt 0:00:19]} Ne6 {[%emt 0:00:06]} 34. Rfd7 {[%emt 0:01:55]} Rf8 {[%emt 0:04:28]} 35. Rc4 {[%emt 0:00:41]} Nxf4 {[%emt 0:01:08]} 36. g3 {[%emt 0:00:11]} Ne6 {[%emt 0:03:23]} 37. Rxd3 {[%emt 0:01:48]} Nc5 {[%emt 0:00:05]} 38. Rd5 {[%emt 0:00:07]} g6 {[%emt 0:00:32]} 39. b4 {[%emt 0:00:16]} Ne6 {[%emt 0:02:12]} 40. Rc6 {[%emt 0:00:12]} Re8 {[%emt 0:00:24]} 41. Rdd6 {[%emt 0:00:10]} Kf7 {[%emt 0:00:16]} 42. a4 {[%emt 0:01:14]} Re7 {[%emt 0:00:46]} 43. h4 {[%emt 0:03:01]} Kf6 {[%emt 0:00:48]} 44. Rd5 {[%emt 0:00:09]} Kf7 {[%emt 0:00:35]} 45. Kg2 {[%emt 0:00:20]} Nc7 {[%emt 0:00:56]} 46. Rdd6 {[%emt 0:00:11]} Ne6 {[%emt 0:00:37]} 47. Kf3 {[%emt 0:01:55]} Kf6 {[%emt 0:01:56]} 48. Ke4 {[%emt 0:00:06]} Kf7 {[%emt 0:00:55]} 49. Kd5 {[%emt 0:00:35]} Nc7+ {[%emt 0:00:10]} 50. Kd4 {[%emt 0:00:06]} Ne6+ {[%emt 0:00:26]} 51. Kc4 {[%emt 0:00:29]} g5 {[%emt 0:02:16]} 52. Rd5 {[%emt 0:01:33]} gxh4 {[%emt 0:00:34]} 53. gxh4 {[%emt 0:00:02]} Ng7 {[%emt 0:00:25]} 54. Kb5 {[%emt 0:00:22]} Ne6 {[%emt 0:00:16]} 55. Kc4 {[%emt 0:00:51]} Ng7 {[%emt 0:00:08]} 56. Rcd6 {[%emt 0:00:28]} Re4+ {[%emt 0:00:59]} 57. Rd4 {[%emt 0:00:55]} Re1 {[%emt 0:00:15]} 58. Rd7+ {[%emt 0:00:15]} Kg8 {[%emt 0:00:10]} 59. Rxa7 {[%emt 0:00:13]} Ne6 {[%emt 0:00:07]} 60. Rd6 {[%emt 0:01:04]} Rc1+ {[%emt 0:00:32]} 61. Kd5 {[%emt 0:00:35]} Nf8 {[%emt 0:00:20]} 62. Rh6 {[%emt 0:00:28]} Rd1+ {[%emt 0:00:20]} 63. Kc4 {[%emt 0:02:07]} 1-0